{"text_format":"3","workbook":"xlsx","n_sheets":3,"sheets":["Programación","Entrada de datos","Búsqueda de nombre"],"not_rendered":{"defined_names":5},"read":"whole","date_system":"1900"}

{"sheet":"Programación","index":0,"n_rows":23,"n_cols":9,"rows_kept":23,"merged":[[1,1,2,3]]}
[]
[null,"PROGRAMACIÓN DIARIA",{"$nulls":4},"Para la semana de ","Mostrar programación para: "]
[{"$nulls":5},{"$f":"WEEKDAY(SemanaDe,1)","v":3},"2012-07-03","Mauricio"]
[null,null,{"$f":"$F$3=COLUMN(A$1)","v":false},{"$f":"$F$3=COLUMN(B$1)","v":false},true,false,false,false,false]
[null,null,{"$f":"COLUMN(A$1)-MATCH(TRUE,$C$4:$I$4,0)+SemanaDe+1","v":"2012-07-02"},"2012-07-03","2012-07-04","2012-07-05","2012-07-06","2012-07-07","2012-07-08"]
[null,"HORA","LUNES","MARTES","Miércoles","JUEVES","VIERNES","SÁBADO","DOMINGO"]
[null,"06:00:00",{"$f":"IFERROR(INDEX(tblDatos[],MATCH(C$5+$B5&MostrarNombre,tblDatos[FECHA Y HORA]&tblDatos[QUIÉN],0),3),\"\")","v":""},{"$f":"IFERROR(INDEX(tblDatos[],MATCH(D$5+$B7&MostrarNombre,tblDatos[FECHA Y HORA]&tblDatos[QUIÉN],0),3),\"\")","v":""},{"$f":"IFERROR(INDEX(tblDatos[],MATCH(E$5+$B7&MostrarNombre,tblDatos[FECHA Y HORA]&tblDatos[QUIÉN],0),3),\"\")","v":""},{"$f":"IFERROR(INDEX(tblDatos[],MATCH(F$5+$B7&MostrarNombre,tblDatos[FECHA Y HORA]&tblDatos[QUIÉN],0),3),\"\")","v":""},{"$f":"IFERROR(INDEX(tblDatos[],MATCH(G$5+$B7&MostrarNombre,tblDatos[FECHA Y HORA]&tblDatos[QUIÉN],0),3),\"\")","v":""},{"$f":"IFERROR(INDEX(tblDatos[],MATCH(H$5+$B7&MostrarNombre,tblDatos[FECHA Y HORA]&tblDatos[QUIÉN],0),3),\"\")","v":""},{"$f":"IFERROR(INDEX(tblDatos[],MATCH(I$5+$B7&MostrarNombre,tblDatos[FECHA Y HORA]&tblDatos[QUIÉN],0),3),\"\")","v":""}]
[null,"07:00:00",{"$f":"IFERROR(INDEX(tblDatos[],MATCH(C$5+$B6&MostrarNombre,tblDatos[FECHA Y HORA]&tblDatos[QUIÉN],0),3),\"\")","v":""},{"$f":"IFERROR(INDEX(tblDatos[],MATCH(D$5+$B8&MostrarNombre,tblDatos[FECHA Y HORA]&tblDatos[QUIÉN],0),3),\"\")","v":""},{"$f":"IFERROR(INDEX(tblDatos[],MATCH(E$5+$B8&MostrarNombre,tblDatos[FECHA Y HORA]&tblDatos[QUIÉN],0),3),\"\")","v":""},{"$f":"IFERROR(INDEX(tblDatos[],MATCH(F$5+$B8&MostrarNombre,tblDatos[FECHA Y HORA]&tblDatos[QUIÉN],0),3),\"\")","v":""},{"$f":"IFERROR(INDEX(tblDatos[],MATCH(G$5+$B8&MostrarNombre,tblDatos[FECHA Y HORA]&tblDatos[QUIÉN],0),3),\"\")","v":""},{"$f":"IFERROR(INDEX(tblDatos[],MATCH(H$5+$B8&MostrarNombre,tblDatos[FECHA Y HORA]&tblDatos[QUIÉN],0),3),\"\")","v":""},{"$f":"IFERROR(INDEX(tblDatos[],MATCH(I$5+$B8&MostrarNombre,tblDatos[FECHA Y HORA]&tblDatos[QUIÉN],0),3),\"\")","v":""}]
[null,"08:00:00",{"$f":"IFERROR(INDEX(tblDatos[],MATCH(C$5+$B7&MostrarNombre,tblDatos[FECHA Y HORA]&tblDatos[QUIÉN],0),3),\"\")","v":""},{"$f":"IFERROR(INDEX(tblDatos[],MATCH(D$5+$B9&MostrarNombre,tblDatos[FECHA Y HORA]&tblDatos[QUIÉN],0),3),\"\")","v":""},{"$f":"IFERROR(INDEX(tblDatos[],MATCH(E$5+$B9&MostrarNombre,tblDatos[FECHA Y HORA]&tblDatos[QUIÉN],0),3),\"\")","v":""},{"$f":"IFERROR(INDEX(tblDatos[],MATCH(F$5+$B9&MostrarNombre,tblDatos[FECHA Y HORA]&tblDatos[QUIÉN],0),3),\"\")","v":""},{"$f":"IFERROR(INDEX(tblDatos[],MATCH(G$5+$B9&MostrarNombre,tblDatos[FECHA Y HORA]&tblDatos[QUIÉN],0),3),\"\")","v":""},{"$f":"IFERROR(INDEX(tblDatos[],MATCH(H$5+$B9&MostrarNombre,tblDatos[FECHA Y HORA]&tblDatos[QUIÉN],0),3),\"\")","v":""},{"$f":"IFERROR(INDEX(tblDatos[],MATCH(I$5+$B9&MostrarNombre,tblDatos[FECHA Y HORA]&tblDatos[QUIÉN],0),3),\"\")","v":""}]
[null,"09:00:00",{"$f":"IFERROR(INDEX(tblDatos[],MATCH(C$5+$B8&MostrarNombre,tblDatos[FECHA Y HORA]&tblDatos[QUIÉN],0),3),\"\")","v":""},{"$f":"IFERROR(INDEX(tblDatos[],MATCH(D$5+$B10&MostrarNombre,tblDatos[FECHA Y HORA]&tblDatos[QUIÉN],0),3),\"\")","v":""},{"$f":"IFERROR(INDEX(tblDatos[],MATCH(E$5+$B10&MostrarNombre,tblDatos[FECHA Y HORA]&tblDatos[QUIÉN],0),3),\"\")","v":""},{"$f":"IFERROR(INDEX(tblDatos[],MATCH(F$5+$B10&MostrarNombre,tblDatos[FECHA Y HORA]&tblDatos[QUIÉN],0),3),\"\")","v":""},{"$f":"IFERROR(INDEX(tblDatos[],MATCH(G$5+$B10&MostrarNombre,tblDatos[FECHA Y HORA]&tblDatos[QUIÉN],0),3),\"\")","v":""},{"$f":"IFERROR(INDEX(tblDatos[],MATCH(H$5+$B10&MostrarNombre,tblDatos[FECHA Y HORA]&tblDatos[QUIÉN],0),3),\"\")","v":""},{"$f":"IFERROR(INDEX(tblDatos[],MATCH(I$5+$B10&MostrarNombre,tblDatos[FECHA Y HORA]&tblDatos[QUIÉN],0),3),\"\")","v":""}]
[null,"10:00:00",{"$f":"IFERROR(INDEX(tblDatos[],MATCH(C$5+$B9&MostrarNombre,tblDatos[FECHA Y HORA]&tblDatos[QUIÉN],0),3),\"\")","v":""},{"$f":"IFERROR(INDEX(tblDatos[],MATCH(D$5+$B11&MostrarNombre,tblDatos[FECHA Y HORA]&tblDatos[QUIÉN],0),3),\"\")","v":""},{"$f":"IFERROR(INDEX(tblDatos[],MATCH(E$5+$B11&MostrarNombre,tblDatos[FECHA Y HORA]&tblDatos[QUIÉN],0),3),\"\")","v":"Desfile en el centro"},{"$f":"IFERROR(INDEX(tblDatos[],MATCH(F$5+$B11&MostrarNombre,tblDatos[FECHA Y HORA]&tblDatos[QUIÉN],0),3),\"\")","v":""},{"$f":"IFERROR(INDEX(tblDatos[],MATCH(G$5+$B11&MostrarNombre,tblDatos[FECHA Y HORA]&tblDatos[QUIÉN],0),3),\"\")","v":""},{"$f":"IFERROR(INDEX(tblDatos[],MATCH(H$5+$B11&MostrarNombre,tblDatos[FECHA Y HORA]&tblDatos[QUIÉN],0),3),\"\")","v":""},{"$f":"IFERROR(INDEX(tblDatos[],MATCH(I$5+$B11&MostrarNombre,tblDatos[FECHA Y HORA]&tblDatos[QUIÉN],0),3),\"\")","v":""}]
[null,"11:00:00",{"$f":"IFERROR(INDEX(tblDatos[],MATCH(C$5+$B10&MostrarNombre,tblDatos[FECHA Y HORA]&tblDatos[QUIÉN],0),3),\"\")","v":""},{"$f":"IFERROR(INDEX(tblDatos[],MATCH(D$5+$B12&MostrarNombre,tblDatos[FECHA Y HORA]&tblDatos[QUIÉN],0),3),\"\")","v":""},{"$f":"IFERROR(INDEX(tblDatos[],MATCH(E$5+$B12&MostrarNombre,tblDatos[FECHA Y HORA]&tblDatos[QUIÉN],0),3),\"\")","v":""},{"$f":"IFERROR(INDEX(tblDatos[],MATCH(F$5+$B12&MostrarNombre,tblDatos[FECHA Y HORA]&tblDatos[QUIÉN],0),3),\"\")","v":""},{"$f":"IFERROR(INDEX(tblDatos[],MATCH(G$5+$B12&MostrarNombre,tblDatos[FECHA Y HORA]&tblDatos[QUIÉN],0),3),\"\")","v":"Comida con la familia"},{"$f":"IFERROR(INDEX(tblDatos[],MATCH(H$5+$B12&MostrarNombre,tblDatos[FECHA Y HORA]&tblDatos[QUIÉN],0),3),\"\")","v":""},{"$f":"IFERROR(INDEX(tblDatos[],MATCH(I$5+$B12&MostrarNombre,tblDatos[FECHA Y HORA]&tblDatos[QUIÉN],0),3),\"\")","v":""}]
[null,"12:00:00",{"$f":"IFERROR(INDEX(tblDatos[],MATCH(C$5+$B11&MostrarNombre,tblDatos[FECHA Y HORA]&tblDatos[QUIÉN],0),3),\"\")","v":""},{"$f":"IFERROR(INDEX(tblDatos[],MATCH(D$5+$B13&MostrarNombre,tblDatos[FECHA Y HORA]&tblDatos[QUIÉN],0),3),\"\")","v":""},{"$f":"IFERROR(INDEX(tblDatos[],MATCH(E$5+$B13&MostrarNombre,tblDatos[FECHA Y HORA]&tblDatos[QUIÉN],0),3),\"\")","v":""},{"$f":"IFERROR(INDEX(tblDatos[],MATCH(F$5+$B13&MostrarNombre,tblDatos[FECHA Y HORA]&tblDatos[QUIÉN],0),3),\"\")","v":""},{"$f":"IFERROR(INDEX(tblDatos[],MATCH(G$5+$B13&MostrarNombre,tblDatos[FECHA Y HORA]&tblDatos[QUIÉN],0),3),\"\")","v":""},{"$f":"IFERROR(INDEX(tblDatos[],MATCH(H$5+$B13&MostrarNombre,tblDatos[FECHA Y HORA]&tblDatos[QUIÉN],0),3),\"\")","v":""},{"$f":"IFERROR(INDEX(tblDatos[],MATCH(I$5+$B13&MostrarNombre,tblDatos[FECHA Y HORA]&tblDatos[QUIÉN],0),3),\"\")","v":""}]
[null,"13:00:00",{"$f":"IFERROR(INDEX(tblDatos[],MATCH(C$5+$B12&MostrarNombre,tblDatos[FECHA Y HORA]&tblDatos[QUIÉN],0),3),\"\")","v":""},{"$f":"IFERROR(INDEX(tblDatos[],MATCH(D$5+$B14&MostrarNombre,tblDatos[FECHA Y HORA]&tblDatos[QUIÉN],0),3),\"\")","v":""},{"$f":"IFERROR(INDEX(tblDatos[],MATCH(E$5+$B14&MostrarNombre,tblDatos[FECHA Y HORA]&tblDatos[QUIÉN],0),3),\"\")","v":""},{"$f":"IFERROR(INDEX(tblDatos[],MATCH(F$5+$B14&MostrarNombre,tblDatos[FECHA Y HORA]&tblDatos[QUIÉN],0),3),\"\")","v":""},{"$f":"IFERROR(INDEX(tblDatos[],MATCH(G$5+$B14&MostrarNombre,tblDatos[FECHA Y HORA]&tblDatos[QUIÉN],0),3),\"\")","v":""},{"$f":"IFERROR(INDEX(tblDatos[],MATCH(H$5+$B14&MostrarNombre,tblDatos[FECHA Y HORA]&tblDatos[QUIÉN],0),3),\"\")","v":""},{"$f":"IFERROR(INDEX(tblDatos[],MATCH(I$5+$B14&MostrarNombre,tblDatos[FECHA Y HORA]&tblDatos[QUIÉN],0),3),\"\")","v":""}]
[null,"14:00:00",{"$f":"IFERROR(INDEX(tblDatos[],MATCH(C$5+$B13&MostrarNombre,tblDatos[FECHA Y HORA]&tblDatos[QUIÉN],0),3),\"\")","v":""},{"$f":"IFERROR(INDEX(tblDatos[],MATCH(D$5+$B15&MostrarNombre,tblDatos[FECHA Y HORA]&tblDatos[QUIÉN],0),3),\"\")","v":""},{"$f":"IFERROR(INDEX(tblDatos[],MATCH(E$5+$B15&MostrarNombre,tblDatos[FECHA Y HORA]&tblDatos[QUIÉN],0),3),\"\")","v":""},{"$f":"IFERROR(INDEX(tblDatos[],MATCH(F$5+$B15&MostrarNombre,tblDatos[FECHA Y HORA]&tblDatos[QUIÉN],0),3),\"\")","v":""},{"$f":"IFERROR(INDEX(tblDatos[],MATCH(G$5+$B15&MostrarNombre,tblDatos[FECHA Y HORA]&tblDatos[QUIÉN],0),3),\"\")","v":""},{"$f":"IFERROR(INDEX(tblDatos[],MATCH(H$5+$B15&MostrarNombre,tblDatos[FECHA Y HORA]&tblDatos[QUIÉN],0),3),\"\")","v":""},{"$f":"IFERROR(INDEX(tblDatos[],MATCH(I$5+$B15&MostrarNombre,tblDatos[FECHA Y HORA]&tblDatos[QUIÉN],0),3),\"\")","v":""}]
[null,"15:00:00",{"$f":"IFERROR(INDEX(tblDatos[],MATCH(C$5+$B14&MostrarNombre,tblDatos[FECHA Y HORA]&tblDatos[QUIÉN],0),3),\"\")","v":""},{"$f":"IFERROR(INDEX(tblDatos[],MATCH(D$5+$B16&MostrarNombre,tblDatos[FECHA Y HORA]&tblDatos[QUIÉN],0),3),\"\")","v":""},{"$f":"IFERROR(INDEX(tblDatos[],MATCH(E$5+$B16&MostrarNombre,tblDatos[FECHA Y HORA]&tblDatos[QUIÉN],0),3),\"\")","v":""},{"$f":"IFERROR(INDEX(tblDatos[],MATCH(F$5+$B16&MostrarNombre,tblDatos[FECHA Y HORA]&tblDatos[QUIÉN],0),3),\"\")","v":""},{"$f":"IFERROR(INDEX(tblDatos[],MATCH(G$5+$B16&MostrarNombre,tblDatos[FECHA Y HORA]&tblDatos[QUIÉN],0),3),\"\")","v":""},{"$f":"IFERROR(INDEX(tblDatos[],MATCH(H$5+$B16&MostrarNombre,tblDatos[FECHA Y HORA]&tblDatos[QUIÉN],0),3),\"\")","v":""},{"$f":"IFERROR(INDEX(tblDatos[],MATCH(I$5+$B16&MostrarNombre,tblDatos[FECHA Y HORA]&tblDatos[QUIÉN],0),3),\"\")","v":""}]
[null,"16:00:00",{"$f":"IFERROR(INDEX(tblDatos[],MATCH(C$5+$B15&MostrarNombre,tblDatos[FECHA Y HORA]&tblDatos[QUIÉN],0),3),\"\")","v":""},{"$f":"IFERROR(INDEX(tblDatos[],MATCH(D$5+$B17&MostrarNombre,tblDatos[FECHA Y HORA]&tblDatos[QUIÉN],0),3),\"\")","v":"Ir a la cabaña"},{"$f":"IFERROR(INDEX(tblDatos[],MATCH(E$5+$B17&MostrarNombre,tblDatos[FECHA Y HORA]&tblDatos[QUIÉN],0),3),\"\")","v":""},{"$f":"IFERROR(INDEX(tblDatos[],MATCH(F$5+$B17&MostrarNombre,tblDatos[FECHA Y HORA]&tblDatos[QUIÉN],0),3),\"\")","v":""},{"$f":"IFERROR(INDEX(tblDatos[],MATCH(G$5+$B17&MostrarNombre,tblDatos[FECHA Y HORA]&tblDatos[QUIÉN],0),3),\"\")","v":""},{"$f":"IFERROR(INDEX(tblDatos[],MATCH(H$5+$B17&MostrarNombre,tblDatos[FECHA Y HORA]&tblDatos[QUIÉN],0),3),\"\")","v":""},{"$f":"IFERROR(INDEX(tblDatos[],MATCH(I$5+$B17&MostrarNombre,tblDatos[FECHA Y HORA]&tblDatos[QUIÉN],0),3),\"\")","v":""}]
[null,"17:00:00",{"$f":"IFERROR(INDEX(tblDatos[],MATCH(C$5+$B16&MostrarNombre,tblDatos[FECHA Y HORA]&tblDatos[QUIÉN],0),3),\"\")","v":""},{"$f":"IFERROR(INDEX(tblDatos[],MATCH(D$5+$B18&MostrarNombre,tblDatos[FECHA Y HORA]&tblDatos[QUIÉN],0),3),\"\")","v":""},{"$f":"IFERROR(INDEX(tblDatos[],MATCH(E$5+$B18&MostrarNombre,tblDatos[FECHA Y HORA]&tblDatos[QUIÉN],0),3),\"\")","v":""},{"$f":"IFERROR(INDEX(tblDatos[],MATCH(F$5+$B18&MostrarNombre,tblDatos[FECHA Y HORA]&tblDatos[QUIÉN],0),3),\"\")","v":""},{"$f":"IFERROR(INDEX(tblDatos[],MATCH(G$5+$B18&MostrarNombre,tblDatos[FECHA Y HORA]&tblDatos[QUIÉN],0),3),\"\")","v":""},{"$f":"IFERROR(INDEX(tblDatos[],MATCH(H$5+$B18&MostrarNombre,tblDatos[FECHA Y HORA]&tblDatos[QUIÉN],0),3),\"\")","v":""},{"$f":"IFERROR(INDEX(tblDatos[],MATCH(I$5+$B18&MostrarNombre,tblDatos[FECHA Y HORA]&tblDatos[QUIÉN],0),3),\"\")","v":"Volver a casa"}]
[null,"18:00:00",{"$f":"IFERROR(INDEX(tblDatos[],MATCH(C$5+$B17&MostrarNombre,tblDatos[FECHA Y HORA]&tblDatos[QUIÉN],0),3),\"\")","v":""},{"$f":"IFERROR(INDEX(tblDatos[],MATCH(D$5+$B19&MostrarNombre,tblDatos[FECHA Y HORA]&tblDatos[QUIÉN],0),3),\"\")","v":""},{"$f":"IFERROR(INDEX(tblDatos[],MATCH(E$5+$B19&MostrarNombre,tblDatos[FECHA Y HORA]&tblDatos[QUIÉN],0),3),\"\")","v":""},{"$f":"IFERROR(INDEX(tblDatos[],MATCH(F$5+$B19&MostrarNombre,tblDatos[FECHA Y HORA]&tblDatos[QUIÉN],0),3),\"\")","v":""},{"$f":"IFERROR(INDEX(tblDatos[],MATCH(G$5+$B19&MostrarNombre,tblDatos[FECHA Y HORA]&tblDatos[QUIÉN],0),3),\"\")","v":""},{"$f":"IFERROR(INDEX(tblDatos[],MATCH(H$5+$B19&MostrarNombre,tblDatos[FECHA Y HORA]&tblDatos[QUIÉN],0),3),\"\")","v":""},{"$f":"IFERROR(INDEX(tblDatos[],MATCH(I$5+$B19&MostrarNombre,tblDatos[FECHA Y HORA]&tblDatos[QUIÉN],0),3),\"\")","v":""}]
[null,"19:00:00",{"$f":"IFERROR(INDEX(tblDatos[],MATCH(C$5+$B18&MostrarNombre,tblDatos[FECHA Y HORA]&tblDatos[QUIÉN],0),3),\"\")","v":""},{"$f":"IFERROR(INDEX(tblDatos[],MATCH(D$5+$B20&MostrarNombre,tblDatos[FECHA Y HORA]&tblDatos[QUIÉN],0),3),\"\")","v":""},{"$f":"IFERROR(INDEX(tblDatos[],MATCH(E$5+$B20&MostrarNombre,tblDatos[FECHA Y HORA]&tblDatos[QUIÉN],0),3),\"\")","v":""},{"$f":"IFERROR(INDEX(tblDatos[],MATCH(F$5+$B20&MostrarNombre,tblDatos[FECHA Y HORA]&tblDatos[QUIÉN],0),3),\"\")","v":""},{"$f":"IFERROR(INDEX(tblDatos[],MATCH(G$5+$B20&MostrarNombre,tblDatos[FECHA Y HORA]&tblDatos[QUIÉN],0),3),\"\")","v":""},{"$f":"IFERROR(INDEX(tblDatos[],MATCH(H$5+$B20&MostrarNombre,tblDatos[FECHA Y HORA]&tblDatos[QUIÉN],0),3),\"\")","v":""},{"$f":"IFERROR(INDEX(tblDatos[],MATCH(I$5+$B20&MostrarNombre,tblDatos[FECHA Y HORA]&tblDatos[QUIÉN],0),3),\"\")","v":""}]
[null,"20:00:00",{"$f":"IFERROR(INDEX(tblDatos[],MATCH(C$5+$B19&MostrarNombre,tblDatos[FECHA Y HORA]&tblDatos[QUIÉN],0),3),\"\")","v":"Tomar medicina"},{"$f":"IFERROR(INDEX(tblDatos[],MATCH(D$5+$B21&MostrarNombre,tblDatos[FECHA Y HORA]&tblDatos[QUIÉN],0),3),\"\")","v":""},{"$f":"IFERROR(INDEX(tblDatos[],MATCH(E$5+$B21&MostrarNombre,tblDatos[FECHA Y HORA]&tblDatos[QUIÉN],0),3),\"\")","v":""},{"$f":"IFERROR(INDEX(tblDatos[],MATCH(F$5+$B21&MostrarNombre,tblDatos[FECHA Y HORA]&tblDatos[QUIÉN],0),3),\"\")","v":"Fuegos artificiales"},{"$f":"IFERROR(INDEX(tblDatos[],MATCH(G$5+$B21&MostrarNombre,tblDatos[FECHA Y HORA]&tblDatos[QUIÉN],0),3),\"\")","v":""},{"$f":"IFERROR(INDEX(tblDatos[],MATCH(H$5+$B21&MostrarNombre,tblDatos[FECHA Y HORA]&tblDatos[QUIÉN],0),3),\"\")","v":""},{"$f":"IFERROR(INDEX(tblDatos[],MATCH(I$5+$B21&MostrarNombre,tblDatos[FECHA Y HORA]&tblDatos[QUIÉN],0),3),\"\")","v":""}]
[null,"21:00:00",{"$f":"IFERROR(INDEX(tblDatos[],MATCH(C$5+$B20&MostrarNombre,tblDatos[FECHA Y HORA]&tblDatos[QUIÉN],0),3),\"\")","v":""},{"$f":"IFERROR(INDEX(tblDatos[],MATCH(D$5+$B22&MostrarNombre,tblDatos[FECHA Y HORA]&tblDatos[QUIÉN],0),3),\"\")","v":""},{"$f":"IFERROR(INDEX(tblDatos[],MATCH(E$5+$B22&MostrarNombre,tblDatos[FECHA Y HORA]&tblDatos[QUIÉN],0),3),\"\")","v":""},{"$f":"IFERROR(INDEX(tblDatos[],MATCH(F$5+$B22&MostrarNombre,tblDatos[FECHA Y HORA]&tblDatos[QUIÉN],0),3),\"\")","v":""},{"$f":"IFERROR(INDEX(tblDatos[],MATCH(G$5+$B22&MostrarNombre,tblDatos[FECHA Y HORA]&tblDatos[QUIÉN],0),3),\"\")","v":""},{"$f":"IFERROR(INDEX(tblDatos[],MATCH(H$5+$B22&MostrarNombre,tblDatos[FECHA Y HORA]&tblDatos[QUIÉN],0),3),\"\")","v":""},{"$f":"IFERROR(INDEX(tblDatos[],MATCH(I$5+$B22&MostrarNombre,tblDatos[FECHA Y HORA]&tblDatos[QUIÉN],0),3),\"\")","v":""}]
[null,"22:00:00",{"$f":"IFERROR(INDEX(tblDatos[],MATCH(C$5+$B21&MostrarNombre,tblDatos[FECHA Y HORA]&tblDatos[QUIÉN],0),3),\"\")","v":"Película con la familia"},{"$f":"IFERROR(INDEX(tblDatos[],MATCH(D$5+$B23&MostrarNombre,tblDatos[FECHA Y HORA]&tblDatos[QUIÉN],0),3),\"\")","v":""},{"$f":"IFERROR(INDEX(tblDatos[],MATCH(E$5+$B23&MostrarNombre,tblDatos[FECHA Y HORA]&tblDatos[QUIÉN],0),3),\"\")","v":""},{"$f":"IFERROR(INDEX(tblDatos[],MATCH(F$5+$B23&MostrarNombre,tblDatos[FECHA Y HORA]&tblDatos[QUIÉN],0),3),\"\")","v":""},{"$f":"IFERROR(INDEX(tblDatos[],MATCH(G$5+$B23&MostrarNombre,tblDatos[FECHA Y HORA]&tblDatos[QUIÉN],0),3),\"\")","v":""},{"$f":"IFERROR(INDEX(tblDatos[],MATCH(H$5+$B23&MostrarNombre,tblDatos[FECHA Y HORA]&tblDatos[QUIÉN],0),3),\"\")","v":""},{"$f":"IFERROR(INDEX(tblDatos[],MATCH(I$5+$B23&MostrarNombre,tblDatos[FECHA Y HORA]&tblDatos[QUIÉN],0),3),\"\")","v":""}]

{"sheet":"Entrada de datos","index":1,"n_rows":14,"n_cols":4,"rows_kept":14}
[null,"ENTRADA DE DATOS"]
[]
[null,"FECHA Y HORA","QUIÉN","TAREA"]
[null,"2012-07-02T08:00:00","Ana","Cita con el doctor"]
[null,"2012-07-02T18:00:00","Mauricio","Tomar medicina"]
[null,"2012-07-02T18:30:00","Mauricio","Cena con Laura"]
[null,"2012-07-02T20:00:00","Mauricio","Película con la familia"]
[null,"2012-07-03T16:00:00","Mauricio","Ir a la cabaña"]
[null,"2012-07-04T10:00:00","Mauricio","Desfile en el centro"]
[null,"2012-07-05T20:00:00","Mauricio","Fuegos artificiales"]
[null,"2012-07-06T11:00:00","Mauricio","Comida con la familia"]
[null,"2012-07-07","Mauricio","Picnic con la comunidad"]
[null,"2012-07-08T17:00:00","Mauricio","Volver a casa"]
[null,"2012-07-02T10:00:00","Ana","Lección de piano"]

{"sheet":"Búsqueda de nombre","index":2,"n_rows":132,"n_cols":2,"rows_kept":132,"hidden":true,"merged":[[0,0,0,1]]}
["Esta hoja coloca la lista desplegable de nombres en la hoja de Programación en la celda H3. Cualquier cambio realizado en esta hoja puede resultar en un error."]
["NOMBRE ÚNICO","NÚMERO DE FILA"]
[{"$f":"IFERROR(INDEX(CampoQuién,MATCH(0,COUNTIF($A$2:A2,CampoQuién),0)),\"\")","v":"Ana"},{"$f":"IF(A3=\"\",\"\",ROW())","v":3}]
[{"$f":"IFERROR(INDEX(CampoQuién,MATCH(0,COUNTIF($A$2:A3,CampoQuién),0)),\"\")","v":"Mauricio"},{"$f":"IF(A4=\"\",\"\",ROW())","v":4}]
[{"$f":"IFERROR(INDEX(CampoQuién,MATCH(0,COUNTIF($A$2:A4,CampoQuién),0)),\"\")","v":""},""]
[{"$f":"IFERROR(INDEX(CampoQuién,MATCH(0,COUNTIF($A$2:A5,CampoQuién),0)),\"\")","v":""},""]
[{"$f":"IFERROR(INDEX(CampoQuién,MATCH(0,COUNTIF($A$2:A6,CampoQuién),0)),\"\")","v":""},""]
[{"$f":"IFERROR(INDEX(CampoQuién,MATCH(0,COUNTIF($A$2:A7,CampoQuién),0)),\"\")","v":""},""]
[{"$f":"IFERROR(INDEX(CampoQuién,MATCH(0,COUNTIF($A$2:A8,CampoQuién),0)),\"\")","v":""},""]
[{"$f":"IFERROR(INDEX(CampoQuién,MATCH(0,COUNTIF($A$2:A9,CampoQuién),0)),\"\")","v":""},""]
[{"$f":"IFERROR(INDEX(CampoQuién,MATCH(0,COUNTIF($A$2:A10,CampoQuién),0)),\"\")","v":""},""]
[{"$f":"IFERROR(INDEX(CampoQuién,MATCH(0,COUNTIF($A$2:A11,CampoQuién),0)),\"\")","v":""},""]
[{"$f":"IFERROR(INDEX(CampoQuién,MATCH(0,COUNTIF($A$2:A12,CampoQuién),0)),\"\")","v":""},""]
[{"$f":"IFERROR(INDEX(CampoQuién,MATCH(0,COUNTIF($A$2:A13,CampoQuién),0)),\"\")","v":""},""]
[{"$f":"IFERROR(INDEX(CampoQuién,MATCH(0,COUNTIF($A$2:A14,CampoQuién),0)),\"\")","v":""},""]
[{"$f":"IFERROR(INDEX(CampoQuién,MATCH(0,COUNTIF($A$2:A15,CampoQuién),0)),\"\")","v":""},""]
[{"$f":"IFERROR(INDEX(CampoQuién,MATCH(0,COUNTIF($A$2:A16,CampoQuién),0)),\"\")","v":""},""]
[{"$f":"IFERROR(INDEX(CampoQuién,MATCH(0,COUNTIF($A$2:A17,CampoQuién),0)),\"\")","v":""},""]
[{"$f":"IFERROR(INDEX(CampoQuién,MATCH(0,COUNTIF($A$2:A18,CampoQuién),0)),\"\")","v":""},""]
[{"$f":"IFERROR(INDEX(CampoQuién,MATCH(0,COUNTIF($A$2:A19,CampoQuién),0)),\"\")","v":""},""]
[{"$f":"IFERROR(INDEX(CampoQuién,MATCH(0,COUNTIF($A$2:A20,CampoQuién),0)),\"\")","v":""},""]
[{"$f":"IFERROR(INDEX(CampoQuién,MATCH(0,COUNTIF($A$2:A21,CampoQuién),0)),\"\")","v":""},""]
[{"$f":"IFERROR(INDEX(CampoQuién,MATCH(0,COUNTIF($A$2:A22,CampoQuién),0)),\"\")","v":""},""]
[{"$f":"IFERROR(INDEX(CampoQuién,MATCH(0,COUNTIF($A$2:A23,CampoQuién),0)),\"\")","v":""},""]
[{"$f":"IFERROR(INDEX(CampoQuién,MATCH(0,COUNTIF($A$2:A24,CampoQuién),0)),\"\")","v":""},""]
[{"$f":"IFERROR(INDEX(CampoQuién,MATCH(0,COUNTIF($A$2:A25,CampoQuién),0)),\"\")","v":""},""]
[{"$f":"IFERROR(INDEX(CampoQuién,MATCH(0,COUNTIF($A$2:A26,CampoQuién),0)),\"\")","v":""},""]
[{"$f":"IFERROR(INDEX(CampoQuién,MATCH(0,COUNTIF($A$2:A27,CampoQuién),0)),\"\")","v":""},""]
[{"$f":"IFERROR(INDEX(CampoQuién,MATCH(0,COUNTIF($A$2:A28,CampoQuién),0)),\"\")","v":""},""]
[{"$f":"IFERROR(INDEX(CampoQuién,MATCH(0,COUNTIF($A$2:A29,CampoQuién),0)),\"\")","v":""},""]
[{"$f":"IFERROR(INDEX(CampoQuién,MATCH(0,COUNTIF($A$2:A30,CampoQuién),0)),\"\")","v":""},""]
[{"$f":"IFERROR(INDEX(CampoQuién,MATCH(0,COUNTIF($A$2:A31,CampoQuién),0)),\"\")","v":""},""]
[{"$f":"IFERROR(INDEX(CampoQuién,MATCH(0,COUNTIF($A$2:A32,CampoQuién),0)),\"\")","v":""},""]
[{"$f":"IFERROR(INDEX(CampoQuién,MATCH(0,COUNTIF($A$2:A33,CampoQuién),0)),\"\")","v":""},""]
[{"$f":"IFERROR(INDEX(CampoQuién,MATCH(0,COUNTIF($A$2:A34,CampoQuién),0)),\"\")","v":""},""]
[{"$f":"IFERROR(INDEX(CampoQuién,MATCH(0,COUNTIF($A$2:A35,CampoQuién),0)),\"\")","v":""},""]
[{"$f":"IFERROR(INDEX(CampoQuién,MATCH(0,COUNTIF($A$2:A36,CampoQuién),0)),\"\")","v":""},""]
[{"$f":"IFERROR(INDEX(CampoQuién,MATCH(0,COUNTIF($A$2:A37,CampoQuién),0)),\"\")","v":""},""]
[{"$f":"IFERROR(INDEX(CampoQuién,MATCH(0,COUNTIF($A$2:A38,CampoQuién),0)),\"\")","v":""},""]
[{"$f":"IFERROR(INDEX(CampoQuién,MATCH(0,COUNTIF($A$2:A39,CampoQuién),0)),\"\")","v":""},""]
[{"$f":"IFERROR(INDEX(CampoQuién,MATCH(0,COUNTIF($A$2:A40,CampoQuién),0)),\"\")","v":""},""]
[{"$f":"IFERROR(INDEX(CampoQuién,MATCH(0,COUNTIF($A$2:A41,CampoQuién),0)),\"\")","v":""},""]
[{"$f":"IFERROR(INDEX(CampoQuién,MATCH(0,COUNTIF($A$2:A42,CampoQuién),0)),\"\")","v":""},""]
[{"$f":"IFERROR(INDEX(CampoQuién,MATCH(0,COUNTIF($A$2:A43,CampoQuién),0)),\"\")","v":""},""]
[{"$f":"IFERROR(INDEX(CampoQuién,MATCH(0,COUNTIF($A$2:A44,CampoQuién),0)),\"\")","v":""},""]
[{"$f":"IFERROR(INDEX(CampoQuién,MATCH(0,COUNTIF($A$2:A45,CampoQuién),0)),\"\")","v":""},""]
[{"$f":"IFERROR(INDEX(CampoQuién,MATCH(0,COUNTIF($A$2:A46,CampoQuién),0)),\"\")","v":""},""]
[{"$f":"IFERROR(INDEX(CampoQuién,MATCH(0,COUNTIF($A$2:A47,CampoQuién),0)),\"\")","v":""},""]
[{"$f":"IFERROR(INDEX(CampoQuién,MATCH(0,COUNTIF($A$2:A48,CampoQuién),0)),\"\")","v":""},""]
[{"$f":"IFERROR(INDEX(CampoQuién,MATCH(0,COUNTIF($A$2:A49,CampoQuién),0)),\"\")","v":""},""]
[{"$f":"IFERROR(INDEX(CampoQuién,MATCH(0,COUNTIF($A$2:A50,CampoQuién),0)),\"\")","v":""},""]
[{"$f":"IFERROR(INDEX(CampoQuién,MATCH(0,COUNTIF($A$2:A51,CampoQuién),0)),\"\")","v":""},""]
[{"$f":"IFERROR(INDEX(CampoQuién,MATCH(0,COUNTIF($A$2:A52,CampoQuién),0)),\"\")","v":""},""]
[{"$f":"IFERROR(INDEX(CampoQuién,MATCH(0,COUNTIF($A$2:A53,CampoQuién),0)),\"\")","v":""},""]
[{"$f":"IFERROR(INDEX(CampoQuién,MATCH(0,COUNTIF($A$2:A54,CampoQuién),0)),\"\")","v":""},""]
[{"$f":"IFERROR(INDEX(CampoQuién,MATCH(0,COUNTIF($A$2:A55,CampoQuién),0)),\"\")","v":""},""]
[{"$f":"IFERROR(INDEX(CampoQuién,MATCH(0,COUNTIF($A$2:A56,CampoQuién),0)),\"\")","v":""},""]
[{"$f":"IFERROR(INDEX(CampoQuién,MATCH(0,COUNTIF($A$2:A57,CampoQuién),0)),\"\")","v":""},""]
[{"$f":"IFERROR(INDEX(CampoQuién,MATCH(0,COUNTIF($A$2:A58,CampoQuién),0)),\"\")","v":""},""]
[{"$f":"IFERROR(INDEX(CampoQuién,MATCH(0,COUNTIF($A$2:A59,CampoQuién),0)),\"\")","v":""},""]
[{"$f":"IFERROR(INDEX(CampoQuién,MATCH(0,COUNTIF($A$2:A60,CampoQuién),0)),\"\")","v":""},""]
[{"$f":"IFERROR(INDEX(CampoQuién,MATCH(0,COUNTIF($A$2:A61,CampoQuién),0)),\"\")","v":""},""]
[{"$f":"IFERROR(INDEX(CampoQuién,MATCH(0,COUNTIF($A$2:A62,CampoQuién),0)),\"\")","v":""},""]
[{"$f":"IFERROR(INDEX(CampoQuién,MATCH(0,COUNTIF($A$2:A63,CampoQuién),0)),\"\")","v":""},""]
[{"$f":"IFERROR(INDEX(CampoQuién,MATCH(0,COUNTIF($A$2:A64,CampoQuién),0)),\"\")","v":""},""]
[{"$f":"IFERROR(INDEX(CampoQuién,MATCH(0,COUNTIF($A$2:A65,CampoQuién),0)),\"\")","v":""},""]
[{"$f":"IFERROR(INDEX(CampoQuién,MATCH(0,COUNTIF($A$2:A66,CampoQuién),0)),\"\")","v":""},""]
[{"$f":"IFERROR(INDEX(CampoQuién,MATCH(0,COUNTIF($A$2:A67,CampoQuién),0)),\"\")","v":""},{"$f":"IF(A68=\"\",\"\",ROW())","v":""}]
[{"$f":"IFERROR(INDEX(CampoQuién,MATCH(0,COUNTIF($A$2:A68,CampoQuién),0)),\"\")","v":""},""]
[{"$f":"IFERROR(INDEX(CampoQuién,MATCH(0,COUNTIF($A$2:A69,CampoQuién),0)),\"\")","v":""},""]
[{"$f":"IFERROR(INDEX(CampoQuién,MATCH(0,COUNTIF($A$2:A70,CampoQuién),0)),\"\")","v":""},""]
[{"$f":"IFERROR(INDEX(CampoQuién,MATCH(0,COUNTIF($A$2:A71,CampoQuién),0)),\"\")","v":""},""]
[{"$f":"IFERROR(INDEX(CampoQuién,MATCH(0,COUNTIF($A$2:A72,CampoQuién),0)),\"\")","v":""},""]
[{"$f":"IFERROR(INDEX(CampoQuién,MATCH(0,COUNTIF($A$2:A73,CampoQuién),0)),\"\")","v":""},""]
[{"$f":"IFERROR(INDEX(CampoQuién,MATCH(0,COUNTIF($A$2:A74,CampoQuién),0)),\"\")","v":""},""]
[{"$f":"IFERROR(INDEX(CampoQuién,MATCH(0,COUNTIF($A$2:A75,CampoQuién),0)),\"\")","v":""},""]
[{"$f":"IFERROR(INDEX(CampoQuién,MATCH(0,COUNTIF($A$2:A76,CampoQuién),0)),\"\")","v":""},""]
[{"$f":"IFERROR(INDEX(CampoQuién,MATCH(0,COUNTIF($A$2:A77,CampoQuién),0)),\"\")","v":""},""]
[{"$f":"IFERROR(INDEX(CampoQuién,MATCH(0,COUNTIF($A$2:A78,CampoQuién),0)),\"\")","v":""},""]
[{"$f":"IFERROR(INDEX(CampoQuién,MATCH(0,COUNTIF($A$2:A79,CampoQuién),0)),\"\")","v":""},""]
[{"$f":"IFERROR(INDEX(CampoQuién,MATCH(0,COUNTIF($A$2:A80,CampoQuién),0)),\"\")","v":""},""]
[{"$f":"IFERROR(INDEX(CampoQuién,MATCH(0,COUNTIF($A$2:A81,CampoQuién),0)),\"\")","v":""},""]
[{"$f":"IFERROR(INDEX(CampoQuién,MATCH(0,COUNTIF($A$2:A82,CampoQuién),0)),\"\")","v":""},""]
[{"$f":"IFERROR(INDEX(CampoQuién,MATCH(0,COUNTIF($A$2:A83,CampoQuién),0)),\"\")","v":""},""]
[{"$f":"IFERROR(INDEX(CampoQuién,MATCH(0,COUNTIF($A$2:A84,CampoQuién),0)),\"\")","v":""},""]
[{"$f":"IFERROR(INDEX(CampoQuién,MATCH(0,COUNTIF($A$2:A85,CampoQuién),0)),\"\")","v":""},""]
[{"$f":"IFERROR(INDEX(CampoQuién,MATCH(0,COUNTIF($A$2:A86,CampoQuién),0)),\"\")","v":""},""]
[{"$f":"IFERROR(INDEX(CampoQuién,MATCH(0,COUNTIF($A$2:A87,CampoQuién),0)),\"\")","v":""},""]
[{"$f":"IFERROR(INDEX(CampoQuién,MATCH(0,COUNTIF($A$2:A88,CampoQuién),0)),\"\")","v":""},""]
[{"$f":"IFERROR(INDEX(CampoQuién,MATCH(0,COUNTIF($A$2:A89,CampoQuién),0)),\"\")","v":""},""]
[{"$f":"IFERROR(INDEX(CampoQuién,MATCH(0,COUNTIF($A$2:A90,CampoQuién),0)),\"\")","v":""},""]
[{"$f":"IFERROR(INDEX(CampoQuién,MATCH(0,COUNTIF($A$2:A91,CampoQuién),0)),\"\")","v":""},""]
[{"$f":"IFERROR(INDEX(CampoQuién,MATCH(0,COUNTIF($A$2:A92,CampoQuién),0)),\"\")","v":""},""]
[{"$f":"IFERROR(INDEX(CampoQuién,MATCH(0,COUNTIF($A$2:A93,CampoQuién),0)),\"\")","v":""},""]
[{"$f":"IFERROR(INDEX(CampoQuién,MATCH(0,COUNTIF($A$2:A94,CampoQuién),0)),\"\")","v":""},""]
[{"$f":"IFERROR(INDEX(CampoQuién,MATCH(0,COUNTIF($A$2:A95,CampoQuién),0)),\"\")","v":""},""]
[{"$f":"IFERROR(INDEX(CampoQuién,MATCH(0,COUNTIF($A$2:A96,CampoQuién),0)),\"\")","v":""},""]
[{"$f":"IFERROR(INDEX(CampoQuién,MATCH(0,COUNTIF($A$2:A97,CampoQuién),0)),\"\")","v":""},""]
[{"$f":"IFERROR(INDEX(CampoQuién,MATCH(0,COUNTIF($A$2:A98,CampoQuién),0)),\"\")","v":""},""]
[{"$f":"IFERROR(INDEX(CampoQuién,MATCH(0,COUNTIF($A$2:A99,CampoQuién),0)),\"\")","v":""},""]
[{"$f":"IFERROR(INDEX(CampoQuién,MATCH(0,COUNTIF($A$2:A100,CampoQuién),0)),\"\")","v":""},""]
[{"$f":"IFERROR(INDEX(CampoQuién,MATCH(0,COUNTIF($A$2:A101,CampoQuién),0)),\"\")","v":""},""]
[{"$f":"IFERROR(INDEX(CampoQuién,MATCH(0,COUNTIF($A$2:A102,CampoQuién),0)),\"\")","v":""},""]
[{"$f":"IFERROR(INDEX(CampoQuién,MATCH(0,COUNTIF($A$2:A103,CampoQuién),0)),\"\")","v":""},""]
[{"$f":"IFERROR(INDEX(CampoQuién,MATCH(0,COUNTIF($A$2:A104,CampoQuién),0)),\"\")","v":""},""]
[{"$f":"IFERROR(INDEX(CampoQuién,MATCH(0,COUNTIF($A$2:A105,CampoQuién),0)),\"\")","v":""},""]
[{"$f":"IFERROR(INDEX(CampoQuién,MATCH(0,COUNTIF($A$2:A106,CampoQuién),0)),\"\")","v":""},""]
[{"$f":"IFERROR(INDEX(CampoQuién,MATCH(0,COUNTIF($A$2:A107,CampoQuién),0)),\"\")","v":""},""]
[{"$f":"IFERROR(INDEX(CampoQuién,MATCH(0,COUNTIF($A$2:A108,CampoQuién),0)),\"\")","v":""},""]
[{"$f":"IFERROR(INDEX(CampoQuién,MATCH(0,COUNTIF($A$2:A109,CampoQuién),0)),\"\")","v":""},""]
[{"$f":"IFERROR(INDEX(CampoQuién,MATCH(0,COUNTIF($A$2:A110,CampoQuién),0)),\"\")","v":""},""]
[{"$f":"IFERROR(INDEX(CampoQuién,MATCH(0,COUNTIF($A$2:A111,CampoQuién),0)),\"\")","v":""},""]
[{"$f":"IFERROR(INDEX(CampoQuién,MATCH(0,COUNTIF($A$2:A112,CampoQuién),0)),\"\")","v":""},""]
[{"$f":"IFERROR(INDEX(CampoQuién,MATCH(0,COUNTIF($A$2:A113,CampoQuién),0)),\"\")","v":""},""]
[{"$f":"IFERROR(INDEX(CampoQuién,MATCH(0,COUNTIF($A$2:A114,CampoQuién),0)),\"\")","v":""},""]
[{"$f":"IFERROR(INDEX(CampoQuién,MATCH(0,COUNTIF($A$2:A115,CampoQuién),0)),\"\")","v":""},""]
[{"$f":"IFERROR(INDEX(CampoQuién,MATCH(0,COUNTIF($A$2:A116,CampoQuién),0)),\"\")","v":""},""]
[{"$f":"IFERROR(INDEX(CampoQuién,MATCH(0,COUNTIF($A$2:A117,CampoQuién),0)),\"\")","v":""},""]
[{"$f":"IFERROR(INDEX(CampoQuién,MATCH(0,COUNTIF($A$2:A118,CampoQuién),0)),\"\")","v":""},""]
[{"$f":"IFERROR(INDEX(CampoQuién,MATCH(0,COUNTIF($A$2:A119,CampoQuién),0)),\"\")","v":""},""]
[{"$f":"IFERROR(INDEX(CampoQuién,MATCH(0,COUNTIF($A$2:A120,CampoQuién),0)),\"\")","v":""},""]
[{"$f":"IFERROR(INDEX(CampoQuién,MATCH(0,COUNTIF($A$2:A121,CampoQuién),0)),\"\")","v":""},""]
[{"$f":"IFERROR(INDEX(CampoQuién,MATCH(0,COUNTIF($A$2:A122,CampoQuién),0)),\"\")","v":""},""]
[{"$f":"IFERROR(INDEX(CampoQuién,MATCH(0,COUNTIF($A$2:A123,CampoQuién),0)),\"\")","v":""},""]
[{"$f":"IFERROR(INDEX(CampoQuién,MATCH(0,COUNTIF($A$2:A124,CampoQuién),0)),\"\")","v":""},""]
[{"$f":"IFERROR(INDEX(CampoQuién,MATCH(0,COUNTIF($A$2:A125,CampoQuién),0)),\"\")","v":""},""]
[{"$f":"IFERROR(INDEX(CampoQuién,MATCH(0,COUNTIF($A$2:A126,CampoQuién),0)),\"\")","v":""},""]
[{"$f":"IFERROR(INDEX(CampoQuién,MATCH(0,COUNTIF($A$2:A127,CampoQuién),0)),\"\")","v":""},""]
[{"$f":"IFERROR(INDEX(CampoQuién,MATCH(0,COUNTIF($A$2:A128,CampoQuién),0)),\"\")","v":""},""]
[{"$f":"IFERROR(INDEX(CampoQuién,MATCH(0,COUNTIF($A$2:A129,CampoQuién),0)),\"\")","v":""},""]
[{"$f":"IFERROR(INDEX(CampoQuién,MATCH(0,COUNTIF($A$2:A130,CampoQuién),0)),\"\")","v":""},""]
[{"$f":"IFERROR(INDEX(CampoQuién,MATCH(0,COUNTIF($A$2:A131,CampoQuién),0)),\"\")","v":""},{"$f":"IF(A132=\"\",\"\",ROW())","v":""}]